[Event "SVK Extraliga 2019-20"]
[Site "Slovakia"]
[Date "2019.10.20"]
[Round "2.3"]
[White "Rohacek, Miroslav"]
[Black "Roubalik, Jakub"]
[Result "1-0"]
[ECO "A20"]
[WhiteElo "2222"]
[BlackElo "2410"]
[Annotator "NA"]
[PlyCount "83"]
[EventDate "2019.10.19"]
[EventType "team-tourn"]
[EventCountry "SVK"]
[SourceTitle "playchess.com"]
[Source "ChessBase"]
[SourceQuality "1"]
[WhiteTeam "Osuske"]
[BlackTeam "Dubnica"]
[TimeControl "40/5400+30:1800+30"]

1. c4 {[%emt 0:00:13]} e5 {[%emt 0:00:00]} 2. g3 {[%emt 0:00:34]} Nc6 {[%emt 0:00:26]} 3. Bg2 {[%emt 0:00:21]} Nf6 {[%emt 0:00:28]} 4. Nc3 {[%emt 0:00:27]} Bb4 {[%emt 0:00:19]} 5. Nd5 {[%emt 0:00:42]} a5 {[%emt 0:01:47]} 6. a3 {[%emt 0:03:11] A25: English Opening vs King's Indian with ...Nc6 but without early d3} (6. e3 O-O 7. Ne2 Nxd5 8. cxd5 Ne7 9. O-O c6 10. a3 Bd6 11. Nc3 f5 12. d4 e4 13. f3 cxd5 14. Nxd5 exf3 15. Qxf3 {1-0 (58) Bernadskiy,V (2634)-Bogdanovich,S (2689) Lutsk 2017}) 6... Bc5 {[%emt 0:00:12]} 7. e3 {[%emt 0:02:09]} O-O {[%emt 0:00:42]} 8. Ne2 {[%emt 0:00:22]} Re8 {[%emt 0:04:01]} 9. O-O {[%emt 0:01:18]} d6 {[%emt 0:01:48]} 10. d4 {[%emt 0:12:35]} Ba7 $146 {[%emt 0:02:06]} ({Predecessor:} 10... exd4 11. exd4 Bg4 12. f3 Ba7 13. fxg4 Rxe2 14. Nxf6+ gxf6 15. Bxc6 Qe7 16. Bf3 {1-0 (16) Visser,D-Stobik,D (2220) Germany 1987}) 11. h3 {[%emt 0:05:05]} (11. Nxf6+ $11 Qxf6 12. d5) 11... exd4 {[%emt 0:05:29]} 12. exd4 {[%emt 0:02:15]} Nxd5 $1 {[%emt 0:00:19]} 13. cxd5 {[%emt 0:00:09]} Ne7 {[%emt 0:00:12]} 14. Bg5 {[%emt 0:06:55]} h6 {[%emt 0:01:22]} 15. Bf4 {[%emt 0:02:01]} Nf5 {[%emt 0:01:41]} 16. Qd3 {[%emt 0:05:35]} Bd7 {[%emt 0:03:59]} 17. Bd2 {[%emt 0:11:15]} Bb6 {[%emt 0:04:01]} 18. a4 {[%emt 0:05:11]} Qf6 {[%emt 0:02:11]} 19. Bc3 {[%emt 0:02:14]} Re7 {[%emt 0:01:44]} 20. b3 {[%emt 0:04:40]} Rae8 {[%emt 0:02:39]} 21. Ra2 {[%emt 0:04:08]} g5 {[%emt 0:10:19]} 22. Kh2 {[%emt 0:05:15]} h5 {[%emt 0:14:54]} 23. Rd1 {[%emt 0:03:58]} Nh6 {[%emt 0:04:27]} 24. Ng1 {[%emt 0:03:52]} Bf5 {[%emt 0:02:18]} 25. Qd2 {[%emt 0:01:29]} h4 {[%emt 0:04:59]} (25... g4 $17 26. h4 Bh7) 26. gxh4 {[%emt 0:01:31]} gxh4 {[%emt 0:02:40]} 27. Qf4 {[%emt 0:00:33]} Kg7 {[%emt 0:01:05]} 28. Nf3 {[%emt 0:02:47]} Re4 {[%emt 0:00:50]} 29. Qc1 $19 {[%emt 0:01:28]} (29. Qd2 $17) 29... Bd7 {[%emt 0:15:31]} 30. Bd2 {[%emt 0:01:52]} Nf5 {[%emt 0:00:39]} 31. Bg5 {[%emt 0:01:32]} Qg6 {[%emt 0:00:05]} 32. Rg1 {[%emt 0:00:51]} Kh7 {[%emt 0:08:27]} 33. Bf6 {[%emt 0:03:11]} Qxf6 {[%emt 0:01:32]} 34. Ng5+ {[%emt 0:00:08]} Kh8 {[%emt 0:00:27]} 35. Nxe4 {[%emt 0:00:58]} Qxd4 {[%emt 0:00:19]} 36. Qg5 {[%emt 0:00:31]} Rxe4 {[%emt 0:02:33]} 37. Bxe4 {[%emt 0:02:23]} Qe5+ {[%emt 0:00:18]} 38. Kh1 {[%emt 0:01:12]} Qxe4+ {[%emt 0:00:51]} 39. Rg2 {[%emt 0:00:19]} Ng3+ {[%emt 0:01:09]} 40. fxg3 {[%emt 0:01:38]} Bxh3 {[%emt 0:00:10]} 41. Qh6+ {[%emt 0:31:03]} Qh7 {[%emt 0:03:21]} 42. Qf6+ {[%emt 0:00:00]} 1-0

[Event "SVK Extraliga 2019-20"]
[Site "Slovakia"]
[Date "2019.10.22"]
[Round "2.4"]
[White "Stohl, Igor"]
[Black "Malinovsky, Karel"]
[Result "1-0"]
[ECO "D37"]
[WhiteElo "2487"]
[BlackElo "2478"]
[Annotator "ChessBase"]
[PlyCount "139"]
[EventDate "2019.10.19"]
[EventType "team-tourn"]
[EventCountry "SVK"]
[SourceTitle "playchess.com"]
[Source "ChessBase"]
[SourceQuality "1"]
[WhiteTeam "Slovakia"]
[BlackTeam "Czech Republic"]
[WhiteTeamCountry "SVK"]
[BlackTeamCountry "CZE"]
[TimeControl "40/5400+30:1800+30"]

1. d4 {[%emt 0:00:00]} d5 {[%emt 0:00:00]} 2. c4 {[%emt 0:00:02]} e6 {[%emt 0:00:00]} 3. Nf3 {[%emt 0:00:45]} Nf6 {[%emt 0:00:08]} 4. Nc3 {[%emt 0:00:13]} Be7 {[%emt 0:00:49]} 5. Bf4 {[%emt 0:00:28]} O-O {[%emt 0:00:59]} 6. e3 {[%emt 0:00:58]} Nbd7 {[%emt 0:02:40]} 7. a3 {[%emt 0:05:21]} c5 {[%emt 0:07:35]} 8. cxd5 {[%emt 0:02:28]} Nxd5 {[%emt 0:02:08]} 9. Nxd5 {[%emt 0:00:35]} exd5 {[%emt 0:00:40]} 10. dxc5 {[%emt 0:00:04]} Nxc5 {[%emt 0:00:11]} 11. Be2 {[%emt 0:00:56]} Bf6 {[%emt 0:09:17]} 12. Be5 {[%emt 0:02:57]} Re8 {[%emt 0:03:48]} 13. Bxf6 {[%emt 0:14:01]} Qxf6 {[%emt 0:00:59]} 14. Qd4 {[%emt 0:00:58]} Qc6 {[%emt 0:27:33]} 15. Rd1 {[%emt 0:06:22]} Be6 {[%emt 0:05:06]} 16. O-O {[%emt 0:01:26]} Rac8 {[%emt 0:02:34]} 17. Qb4 {[%emt 0:03:18]} Bd7 {[%emt 0:08:08]} 18. Rc1 {[%emt 0:10:23]} b6 {[%emt 0:08:05]} 19. Rfd1 {[%emt 0:02:17]} Qf6 {[%emt 0:01:50]} 20. Qd4 {[%emt 0:12:27]} Qxd4 {[%emt 0:01:59]} 21. Nxd4 {[%emt 0:01:23]} Ba4 {[%emt 0:03:07]} 22. Bb5 {[%emt 0:11:07]} Bxd1 {[%emt 0:04:03]} 23. Bxe8 {[%emt 0:00:12]} Rxe8 {[%emt 0:00:05]} 24. Rxd1 {[%emt 0:00:04]} Kf8 {[%emt 0:04:21]} 25. Nb5 {[%emt 0:05:08]} a5 {[%emt 0:03:25]} 26. Rxd5 {[%emt 0:05:43]} Na4 {[%emt 0:02:07]} 27. b3 {[%emt 0:04:20]} Rc8 {[%emt 0:00:42]} 28. g4 {[%emt 0:01:06]} Nc3 {[%emt 0:00:56]} 29. Nxc3 {[%emt 0:01:47]} Rxc3 {[%emt 0:00:03]} 30. Rb5 {[%emt 0:00:20]} a4 {[%emt 0:00:37]} 31. bxa4 {[%emt 0:00:10]} Rxa3 {[%emt 0:00:05]} 32. Rb4 {[%emt 0:00:14]} h6 {[%emt 0:00:10]} 33. Kg2 {[%emt 0:00:41]} Ra2 {[%emt 0:00:29]} 34. Kg3 {[%emt 0:01:15]} Ke7 {[%emt 0:00:10]} 35. h4 {[%emt 0:00:33]} Kd7 {[%emt 0:00:15]} 36. h5 {[%emt 0:02:18]} Ra3 {[%emt 0:00:24]} 37. Kf4 {[%emt 0:02:06]} Ra2 {[%emt 0:00:47]} 38. f3 {[%emt 0:00:29]} Rc2 {[%emt 0:01:43]} 39. e4 {[%emt 0:02:51]} Rc6 {[%emt 0:00:57]} 40. e5 {[%emt 0:01:33]} Ke6 {[%emt 0:00:33]} 41. Ke4 {[%emt 0:30:39]} Ke7 {[%emt 0:01:57]} 42. f4 {[%emt 0:00:00]} Rc5 {[%emt 0:09:35]} 43. Rxb6 {[%emt 0:00:00]} Rc4+ {[%emt 0:00:20]} 44. Kf5 {[%emt 0:00:00]} Rxa4 {[%emt 0:01:00]} 45. Rb7+ {[%emt 0:00:00]} Kf8 {[%emt 0:01:22]} 46. Rb8+ {[%emt 0:00:00]} Ke7 {[%emt 0:00:07]} 47. Rg8 {[%emt 0:00:00]} Ra6 {[%emt 0:03:49]} 48. g5 {[%emt 0:00:00]} hxg5 {[%emt 0:03:42]} 49. Kxg5 {[%emt 0:00:00]} f6+ {[%emt 0:02:38]} 50. exf6+ {[%emt 0:00:00]} gxf6+ {[%emt 0:00:07]} 51. Kg6 {[%emt 0:00:00]} f5+ {[%emt 0:00:06]} 52. Kxf5 {[%emt 0:00:14]} Kf7 {[%emt 0:00:51]} 53. Rg6 {[%emt 0:02:26]} Ra5+ {[%emt 0:01:12]} 54. Kg4 {[%emt 0:00:01]} Ra1 {[%emt 0:00:22]} 55. Rb6 {[%emt 0:01:04]} Kg7 {[%emt 0:01:12]} 56. Rb7+ {[%emt 0:00:27]} Kf6 {[%emt 0:00:37]} 57. h6 {[%emt 0:01:26]} Rg1+ {[%emt 0:02:35]} 58. Kf3 {[%emt 0:00:09]} Rh1 {[%emt 0:00:41]} 59. h7 {[%emt 0:01:14]} Kf5 {[%emt 0:01:19]} 60. Kg2 {[%emt 0:01:47]} Rh6 {[%emt 0:04:13]} 61. Kg3 {[%emt 0:00:29]} Rh1 {[%emt 0:00:26]} 62. Ra7 {[%emt 0:00:52]} Kg6 {[%emt 0:01:31]} 63. Kg4 {[%emt 0:00:28]} Rg1+ {[%emt 0:00:48]} 64. Kf3 {[%emt 0:00:02]} Rh1 {[%emt 0:00:08]} 65. Ke4 {[%emt 0:00:23]} Re1+ {[%emt 0:00:57]} 66. Kd5 {[%emt 0:00:20]} Rh1 {[%emt 0:01:04]} 67. Ke6 {[%emt 0:00:59]} Re1+ {[%emt 0:00:08]} 68. Kd6 {[%emt 0:00:10]} Rh1 {[%emt 0:00:18]} 69. Re7 {[%emt 0:00:42]} Rd1+ {[%emt 0:01:23]} 70. Ke6 {[%emt 0:00:31]} 1-0

[Event "SVK Extraliga 2019-20"]
[Site "Slovakia"]
[Date "2019.10.20"]
[Round "2.4"]
[White "Petrik, Tomas"]
[Black "Haring, Viktor"]
[Result "1/2-1/2"]
[ECO "A40"]
[WhiteElo "2462"]
[BlackElo "2266"]
[Annotator "ChessBase"]
[PlyCount "197"]
[EventDate "2019.10.19"]
[EventType "team-tourn"]
[EventCountry "SVK"]
[SourceTitle "playchess.com"]
[Source "ChessBase"]
[SourceQuality "1"]
[WhiteTeam "Zilina"]
[BlackTeam "Liptovska"]
[TimeControl "40/5400+30:1800+30"]

1. d4 {[%emt 0:01:52]} Nf6 {[%emt 0:00:00]} 2. c4 {[%emt 0:00:15]} e6 {[%emt 0:00:00]} 3. g3 {[%emt 0:01:22]} Bb4+ {[%emt 0:01:31]} 4. Nd2 {[%emt 0:03:18]} d5 {[%emt 0:06:20]} 5. Bg2 {[%emt 0:05:06]} O-O {[%emt 0:00:31]} 6. Ngf3 {[%emt 0:02:01]} dxc4 {[%emt 0:05:52]} 7. Qc2 {[%emt 0:04:36]} c5 {[%emt 0:16:26]} 8. dxc5 {[%emt 0:29:44]} c3 {[%emt 0:02:20]} 9. bxc3 {[%emt 0:00:11]} Bxc5 {[%emt 0:00:07]} 10. O-O {[%emt 0:00:16]} Nc6 {[%emt 0:06:39]} 11. Rb1 {[%emt 0:12:56]} Re8 {[%emt 0:11:13]} 12. Nb3 {[%emt 0:07:23]} Bf8 {[%emt 0:00:59]} 13. Rd1 {[%emt 0:09:18]} Qc7 {[%emt 0:00:34]} 14. Nbd4 {[%emt 0:03:36]} Nxd4 {[%emt 0:24:48]} 15. Nxd4 {[%emt 0:00:18]} a6 {[%emt 0:00:10]} 16. Nf3 {[%emt 0:05:54]} Bd7 {[%emt 0:12:17]} 17. Bf4 {[%emt 0:00:38]} Qa5 {[%emt 0:01:18]} 18. Nd4 {[%emt 0:04:04]} e5 {[%emt 0:01:26]} 19. Nb3 {[%emt 0:00:13]} Qc7 {[%emt 0:04:01]} 20. Bg5 {[%emt 0:00:05]} Be6 {[%emt 0:01:09]} 21. Bxf6 {[%emt 0:05:23]} gxf6 {[%emt 0:00:05]} 22. Be4 {[%emt 0:00:08]} h6 {[%emt 0:00:03]} 23. Nd2 {[%emt 0:00:06]} Rab8 {[%emt 0:00:47]} 24. Bf5 {[%emt 0:00:14]} Rec8 {[%emt 0:02:51]} 25. Ne4 {[%emt 0:01:45]} Be7 {[%emt 0:00:01]} 26. g4 {[%emt 0:00:07]} Qc4 {[%emt 0:00:58]} 27. Rb6 {[%emt 0:01:52]} Rc6 {[%emt 0:00:26]} 28. Rxc6 {[%emt 0:00:30]} Qxc6 {[%emt 0:00:29]} 29. Ng3 {[%emt 0:00:08]} Rc8 {[%emt 0:00:31]} 30. Bxe6 {[%emt 0:00:53]} Qxe6 {[%emt 0:00:02]} 31. Nf5 {[%emt 0:00:09]} Bf8 {[%emt 0:00:07]} 32. h3 {[%emt 0:00:50]} b5 {[%emt 0:00:38]} 33. Qd2 {[%emt 0:00:41]} Kh7 {[%emt 0:00:05]} 34. Qd3 {[%emt 0:00:23]} Kg8 {[%emt 0:00:45]} 35. Qe3 {[%emt 0:00:39]} Qxa2 {[%emt 0:00:35]} 36. Rd7 {[%emt 0:00:27]} Qa1+ {[%emt 0:00:23]} 37. Kh2 {[%emt 0:00:27]} Qxc3 {[%emt 0:01:22]} 38. Qxc3 {[%emt 0:00:40]} Rxc3 {[%emt 0:00:02]} 39. Rd8 {[%emt 0:00:06]} Rc7 {[%emt 0:00:56]} 40. Ra8 {[%emt 0:00:54]} Rb7 {[%emt 0:00:37]} 41. Nd6 {[%emt 0:25:57]} Rb6 {[%emt 0:03:36]} 42. Nf5 {[%emt 0:00:34]} Rb7 {[%emt 0:09:55]} 43. Nd6 {[%emt 0:00:17]} Rc7 {[%emt 0:00:58]} 44. Rxa6 {[%emt 0:04:04]} Bxd6 {[%emt 0:02:54]} 45. Rxd6 {[%emt 0:00:01]} Rb7 {[%emt 0:05:06]} 46. Rxf6 {[%emt 0:01:39]} b4 {[%emt 0:00:18]} 47. Rd6 {[%emt 0:00:06]} b3 {[%emt 0:00:36]} 48. Rd1 {[%emt 0:00:02]} b2 {[%emt 0:04:26]} 49. Rb1 {[%emt 0:00:02]} Kg7 {[%emt 0:03:45]} 50. Kg3 {[%emt 0:01:15]} Kg6 {[%emt 0:01:31]} 51. Kf3 {[%emt 0:00:53]} f5 {[%emt 0:01:11]} 52. Ke3 {[%emt 0:01:10]} f4+ {[%emt 0:01:22]} 53. Kd3 {[%emt 0:00:26]} Rb3+ {[%emt 0:00:52]} 54. Kc4 {[%emt 0:00:35]} Rxh3 {[%emt 0:00:29]} 55. Rxb2 {[%emt 0:00:01]} Rh2 {[%emt 0:00:29]} 56. f3 {[%emt 0:00:14]} Kg5 {[%emt 0:00:35]} 57. Kd5 {[%emt 0:00:34]} Kf6 {[%emt 0:00:28]} 58. Ke4 {[%emt 0:00:37]} h5 {[%emt 0:00:28]} 59. gxh5 {[%emt 0:00:59]} Rxh5 {[%emt 0:00:11]} 60. Rb6+ {[%emt 0:00:09]} Ke7 {[%emt 0:00:27]} 61. Kd5 {[%emt 0:00:30]} Kf7 {[%emt 0:00:28]} 62. Ke4 {[%emt 0:00:55]} Ke7 {[%emt 0:00:28]} 63. Ra6 {[%emt 0:00:20]} Kf7 {[%emt 0:00:37]} 64. Kd5 {[%emt 0:00:40]} Rg5 {[%emt 0:00:25]} 65. Rh6 {[%emt 0:00:27]} Rf5 {[%emt 0:00:43]} 66. Rh7+ {[%emt 0:00:33]} Kf6 {[%emt 0:00:38]} 67. Rh8 {[%emt 0:00:16]} Rg5 {[%emt 0:00:30]} 68. Re8 {[%emt 0:00:11]} Rh5 {[%emt 0:00:30]} 69. Re6+ {[%emt 0:00:05]} Kf7 {[%emt 0:00:37]} 70. Rxe5 {[%emt 0:00:03]} Rh2 {[%emt 0:00:04]} 71. Re4 {[%emt 0:01:51]} Kg6 {[%emt 0:00:21]} 72. Ke6 {[%emt 0:00:31]} Kg5 {[%emt 0:00:42]} 73. Ke5 {[%emt 0:00:28]} Rh8 {[%emt 0:00:36]} 74. Kd4 {[%emt 0:00:34]} Rf8 {[%emt 0:00:33]} 75. Re5+ {[%emt 0:00:11]} Kh4 {[%emt 0:00:33]} 76. Ke4 {[%emt 0:00:37]} Kg3 {[%emt 0:00:34]} 77. Rg5+ {[%emt 0:00:42]} Kf2 {[%emt 0:00:15]} 78. Rf5 {[%emt 0:00:20]} Rg8 {[%emt 0:00:28]} 79. Kxf4 {[%emt 0:00:41]} Kxe2 {[%emt 0:00:07]} 80. Rf7 {[%emt 0:00:31]} Kf2 {[%emt 0:00:42]} 81. Rf6 {[%emt 0:00:28]} Re8 {[%emt 0:01:00]} 82. Rf5 {[%emt 0:00:25]} Rg8 {[%emt 0:00:20]} 83. Rf7 {[%emt 0:00:36]} Re8 {[%emt 0:00:14]} 84. Kg5 {[%emt 0:00:29]} Rg8+ {[%emt 0:00:58]} 85. Kh6 {[%emt 0:00:30]} Ke3 {[%emt 0:00:14]} 86. f4 {[%emt 0:00:24]} Ke4 {[%emt 0:00:04]} 87. f5 {[%emt 0:00:29]} Ke5 {[%emt 0:00:45]} 88. Kh7 {[%emt 0:00:35]} Rg1 {[%emt 0:00:27]} 89. Rf8 {[%emt 0:00:34]} Rg2 {[%emt 0:00:53]} 90. f6 {[%emt 0:00:29]} Ke6 {[%emt 0:00:09]} 91. Kh6 {[%emt 0:00:24]} Rg1 {[%emt 0:00:41]} 92. f7 {[%emt 0:00:36]} Ke7 {[%emt 0:00:02]} 93. Rg8 {[%emt 0:00:13]} Rh1+ {[%emt 0:00:13]} 94. Kg6 {[%emt 0:00:09]} Rg1+ {[%emt 0:00:06]} 95. Kh5 {[%emt 0:00:10]} Rh1+ {[%emt 0:00:12]} 96. Kg6 {[%emt 0:00:34]} Rg1+ {[%emt 0:00:07]} 97. Kf5 {[%emt 0:00:16]} Rf1+ {[%emt 0:00:05]} 98. Ke5 {[%emt 0:00:12]} Kxf7 {[%emt 0:00:09]} 99. Ke4 1/2-1/2

[Event "SVK Extraliga 2019-20"]
[Site "Slovakia"]
[Date "2019.10.20"]
[Round "2.4"]
[White "Bagi, Mate"]
[Black "Dovzik, Juri"]
[Result "1-0"]
[ECO "B47"]
[WhiteElo "2461"]
[BlackElo "2276"]
[Annotator "ChessBase"]
[PlyCount "43"]
[EventDate "2019.10.19"]
[EventType "team-tourn"]
[EventCountry "SVK"]
[SourceTitle "playchess.com"]
[Source "ChessBase"]
[SourceQuality "1"]
[WhiteTeam "Streda"]
[TimeControl "40/5400+30:1800+30"]

1. e4 {[%emt 0:00:00]} c5 {[%emt 0:00:19]} 2. Nf3 {[%emt 0:00:00]} e6 {[%emt 0:00:28]} 3. d4 {[%emt 0:00:20]} cxd4 {[%emt 0:00:06]} 4. Nxd4 {[%emt 0:00:06]} Nc6 {[%emt 0:01:01]} 5. Nc3 {[%emt 0:00:23]} Qc7 {[%emt 0:01:30]} 6. Be2 {[%emt 0:02:20]} a6 {[%emt 0:00:55]} 7. O-O {[%emt 0:00:51]} Nf6 {[%emt 0:00:08]} 8. Be3 {[%emt 0:01:58]} Be7 {[%emt 0:01:14]} 9. f4 {[%emt 0:02:28]} d6 {[%emt 0:00:25]} 10. a4 {[%emt 0:02:34]} O-O {[%emt 0:00:25]} 11. Kh1 {[%emt 0:03:25]} Nxd4 {[%emt 0:03:57]} 12. Bxd4 {[%emt 0:08:45]} e5 {[%emt 0:06:09]} 13. Be3 {[%emt 0:05:49]} exf4 {[%emt 0:01:53]} 14. Bxf4 {[%emt 0:01:20]} Be6 {[%emt 0:00:06]} 15. Rc1 {[%emt 0:09:44]} Rac8 16. Qd2 {[%emt 0:08:13]} Nd7 {[%emt 0:23:58]} 17. Nd5 {[%emt 0:10:23]} Bxd5 {[%emt 0:00:56]} 18. Qxd5 Nb6 {[%emt 0:30:02]} 19. Qb3 {[%emt 0:05:29]} Bf6 {[%emt 0:03:17]} 20. Qg3 {[%emt 0:08:54]} Bxb2 {[%emt 0:13:18]} 21. Bxd6 {[%emt 0:02:00]} Qc3 {[%emt 0:01:28]} 22. Rb1 {[%emt 0:06:17]} 1-0

[Event "SVK Extraliga 2019-20"]
[Site "Slovakia"]
[Date "2019.10.20"]
[Round "2.4"]
[White "Likavsky, Tomas"]
[Black "Mrva, Martin"]
[Result "0-1"]
[ECO "A40"]
[WhiteElo "2423"]
[BlackElo "2401"]
[Annotator "ChessBase"]
[PlyCount "106"]
[EventDate "2019.10.19"]
[EventType "team-tourn"]
[EventCountry "SVK"]
[SourceTitle "playchess.com"]
[Source "ChessBase"]
[SourceQuality "1"]
[WhiteTeam "Podhajska"]
[BlackTeam "Snina"]
[TimeControl "40/5400+30:1800+30"]

1. d4 {[%emt 0:00:00]} a6 {[%emt 0:00:53]} 2. e4 {[%emt 0:04:19]} d6 {[%emt 0:01:53]} 3. c4 {[%emt 0:03:03]} e5 {[%emt 0:00:46]} 4. Nf3 {[%emt 0:03:04]} Nc6 {[%emt 0:02:19]} 5. Be2 {[%emt 0:07:37]} Be7 {[%emt 0:03:42]} 6. Nc3 {[%emt 0:13:21]} exd4 {[%emt 0:01:51]} 7. Nxd4 {[%emt 0:00:06]} Nxd4 {[%emt 0:00:09]} 8. Qxd4 {[%emt 0:00:12]} Bf6 {[%emt 0:00:05]} 9. Qd3 {[%emt 0:03:46]} Ne7 {[%emt 0:00:10]} 10. O-O {[%emt 0:01:45]} O-O {[%emt 0:00:48]} 11. Be3 {[%emt 0:05:17]} Nc6 {[%emt 0:04:33]} 12. Rad1 {[%emt 0:03:58]} Re8 {[%emt 0:20:48]} 13. Qc2 {[%emt 0:09:05]} Bxc3 14. Qxc3 {[%emt 0:02:04]} Qe7 {[%emt 0:08:01]} 15. Bd3 {[%emt 0:03:13]} Ne5 {[%emt 0:03:51]} 16. Bb1 {[%emt 0:00:45]} b6 {[%emt 0:10:36]} 17. f3 {[%emt 0:02:05]} Ng6 {[%emt 0:05:47]} 18. Rf2 {[%emt 0:05:15]} Bb7 {[%emt 0:04:43]} 19. Rfd2 {[%emt 0:02:18]} Bc6 {[%emt 0:03:29]} 20. Kh1 {[%emt 0:01:47]} a5 {[%emt 0:00:47]} 21. Bd4 {[%emt 0:01:02]} f6 {[%emt 0:00:51]} 22. b3 {[%emt 0:00:10]} Nf4 {[%emt 0:03:22]} 23. Qe3 {[%emt 0:02:48]} Ne6 {[%emt 0:01:29]} 24. Bc3 {[%emt 0:00:03]} Qf7 {[%emt 0:00:58]} 25. Qf2 {[%emt 0:01:17]} Nf8 {[%emt 0:00:32]} 26. Bd3 {[%emt 0:03:22]} Kh8 {[%emt 0:01:53]} 27. g4 {[%emt 0:00:27]} Ng6 {[%emt 0:00:46]} 28. Qg3 {[%emt 0:04:11]} Ne5 {[%emt 0:00:49]} 29. Bb1 {[%emt 0:01:07]} a4 {[%emt 0:00:38]} 30. Rg1 {[%emt 0:02:27]} axb3 31. axb3 {[%emt 0:00:01]} Ra3 {[%emt 0:01:31]} 32. Bxe5 Rxe5 {[%emt 0:04:55]} 33. Bc2 {[%emt 0:10:14]} Ra2 {[%emt 0:00:20]} 34. Qf4 {[%emt 0:01:05]} h6 {[%emt 0:02:38]} 35. Rc1 {[%emt 0:00:58]} Rc5 {[%emt 0:02:29]} 36. Bd1 {[%emt 0:00:15]} Ra3 {[%emt 0:03:08]} 37. Rb2 {[%emt 0:00:21]} Qe8 {[%emt 0:01:37]} 38. Qd2 {[%emt 0:02:20]} Re5 {[%emt 0:00:20]} 39. Kg1 {[%emt 0:01:13]} Rg5 {[%emt 0:00:41]} 40. Ra2 {[%emt 0:00:39]} Rxa2 41. Qxa2 {[%emt 0:30:02]} f5 {[%emt 0:34:21]} 42. h3 {[%emt 0:00:00]} fxe4 {[%emt 0:00:00]} 43. f4 {[%emt 0:00:00]} Ra5 {[%emt 0:00:00]} 44. Qg2 {[%emt 0:00:00]} Qa8 {[%emt 0:00:00]} 45. Qd2 {[%emt 0:00:00]} Ra2 {[%emt 0:00:00]} 46. Bc2 {[%emt 0:00:00]} Qa3 {[%emt 0:00:00]} 47. Qe3 {[%emt 0:00:00]} Qb2 {[%emt 0:00:00]} 48. Kf2 {[%emt 0:00:00]} Bb7 {[%emt 0:00:00]} 49. Kg3 {[%emt 0:00:00]} b5 {[%emt 0:00:00]} 50. Kh4 {[%emt 0:00:00]} Qf6+ {[%emt 0:00:00]} 51. Kg3 {[%emt 0:00:00]} bxc4 {[%emt 0:00:00]} 52. bxc4 {[%emt 0:00:00]} g5 {[%emt 0:00:00]} 53. Bb3 {[%emt 0:02:35]} gxf4+ {[%emt 0:00:00]} 0-1

[Event "SVK Extraliga 2019-20"]
[Site "Slovakia"]
[Date "2019.10.20"]
[Round "2.4"]
[White "Smolen, Jan"]
[Black "Szustakowski, Antoni"]
[Result "1-0"]
[ECO "A06"]
[WhiteElo "2419"]
[BlackElo "2300"]
[Annotator "ChessBase"]
[PlyCount "111"]
[EventDate "2019.10.19"]
[EventType "team-tourn"]
[EventCountry "SVK"]
[SourceTitle "playchess.com"]
[Source "ChessBase"]
[SourceQuality "1"]
[TimeControl "40/5400+30:1800+30"]

1. Nf3 {[%emt 0:00:00]} d5 {[%emt 0:00:00]} 2. g3 {[%emt 0:00:00]} c6 {[%emt 0:00:00]} 3. Bg2 {[%emt 0:00:00]} Bg4 {[%emt 0:00:03]} 4. O-O {[%emt 0:00:00]} e6 {[%emt 0:00:06]} 5. d3 {[%emt 0:00:14]} Nd7 {[%emt 0:00:28]} 6. Nbd2 {[%emt 0:00:55]} Bd6 {[%emt 0:00:08]} 7. h3 {[%emt 0:01:27]} Bh5 {[%emt 0:01:03]} 8. e4 {[%emt 0:00:24]} Ne7 {[%emt 0:00:26]} 9. Qe1 {[%emt 0:03:36]} O-O {[%emt 0:02:00]} 10. g4 {[%emt 0:06:59]} Bg6 {[%emt 0:00:06]} 11. Nh4 {[%emt 0:00:17]} h6 {[%emt 0:03:41]} 12. f4 {[%emt 0:01:43]} Bh7 {[%emt 0:00:21]} 13. Ndf3 {[%emt 0:06:48]} dxe4 {[%emt 0:07:15]} 14. dxe4 {[%emt 0:00:10]} Nf6 {[%emt 0:00:40]} 15. Nd2 {[%emt 0:25:40]} Bc5+ {[%emt 0:23:04]} 16. Kh1 {[%emt 0:00:26]} Ng6 {[%emt 0:00:15]} 17. Nxg6 {[%emt 0:02:33]} Bxg6 {[%emt 0:00:09]} 18. a4 {[%emt 0:04:39]} Re8 {[%emt 0:12:33]} 19. Nb3 {[%emt 0:01:45]} Bf8 {[%emt 0:02:10]} 20. Bd2 {[%emt 0:00:14]} Nd7 {[%emt 0:01:53]} 21. Bc3 {[%emt 0:02:48]} Qc7 {[%emt 0:04:40]} 22. Qf2 {[%emt 0:02:09]} Bh7 {[%emt 0:06:14]} 23. Rae1 {[%emt 0:02:02]} b6 {[%emt 0:05:46]} 24. Nd2 {[%emt 0:01:50]} Rad8 {[%emt 0:04:45]} 25. Nc4 {[%emt 0:02:20]} Bc5 {[%emt 0:01:04]} 26. Qg3 {[%emt 0:00:52]} b5 {[%emt 0:01:04]} 27. Ba5 {[%emt 0:02:46]} Nb6 {[%emt 0:02:35]} 28. Ne5 {[%emt 0:01:05]} f6 {[%emt 0:05:19]} 29. Nd3 {[%emt 0:02:03]} Be7 {[%emt 0:00:04]} 30. e5 {[%emt 0:02:37]} Bxd3 {[%emt 0:05:01]} 31. cxd3 {[%emt 0:00:08]} fxe5 {[%emt 0:00:01]} 32. Rxe5 {[%emt 0:00:32]} Qd6 {[%emt 0:01:59]} 33. axb5 {[%emt 0:01:09]} cxb5 {[%emt 0:00:27]} 34. Rxb5 {[%emt 0:01:44]} Qxd3 {[%emt 0:01:09]} 35. Qxd3 {[%emt 0:00:09]} Rxd3 {[%emt 0:00:03]} 36. Bxb6 {[%emt 0:03:52]} Rb8 {[%emt 0:01:45]} 37. Bc5 {[%emt 0:08:07]} Rxb5 {[%emt 0:00:01]} 38. Bxe7 {[%emt 0:00:05]} Rxb2 {[%emt 0:00:04]} 39. g5 {[%emt 0:05:30]} Rdd2 {[%emt 0:04:37]} 40. Rg1 {[%emt 0:02:11]} Kf7 {[%emt 0:00:31]} 41. Ba3 {[%emt 0:30:29]} Ra2 {[%emt 0:31:32]} 42. Bb4 {[%emt 0:00:43]} Rdc2 {[%emt 0:02:30]} 43. g6+ {[%emt 0:00:35]} Kf6 {[%emt 0:02:34]} 44. Bd6 {[%emt 0:00:23]} Rxg2 {[%emt 0:00:00]} 45. Rxg2 {[%emt 0:00:00]} Rxg2 {[%emt 0:00:00]} 46. Kxg2 {[%emt 0:00:00]} Kxg6 {[%emt 0:00:00]} 47. Kf3 {[%emt 0:00:00]} Kf5 {[%emt 0:00:00]} 48. Bf8 {[%emt 0:00:00]} Kf6 {[%emt 0:00:00]} 49. h4 {[%emt 0:00:00]} g5 {[%emt 0:00:00]} 50. h5 {[%emt 0:00:00]} e5 {[%emt 0:00:00]} 51. fxe5+ {[%emt 0:00:00]} Kxe5 {[%emt 0:00:00]} 52. Kg4 {[%emt 0:00:00]} Kf6 {[%emt 0:00:00]} 53. Bxh6 {[%emt 0:00:00]} a5 {[%emt 0:00:00]} 54. Bxg5+ {[%emt 0:00:00]} Kg7 {[%emt 0:00:00]} 55. Bc1 {[%emt 0:00:00]} a4 {[%emt 0:00:00]} 56. Kg5 {[%emt 0:00:00]} 1-0